Cogmind - Beta 10.2 --- EXPLORER MODE // 2022.01.12 @ 16:45:44 Player: xerxia Result: Escaped! Performance ------------- Evolutions (9) 4500 Regions Visited (14) 2800 Robots Destroyed (45) 225 Value Destroyed (1402) 1402 Prototype IDs (9) 180 Alien Tech Used (2) 400 Bonus (6755) 6755 TOTAL SCORE: 16262 Bonus ------- High Alert Combat Kills 57 Win 3000 Win Speed 3698 Cogmind --------- Core Integrity 1600/1600 Matter 25/300 Energy 1105/1190 System Corruption 0% Temperature Cool (7) Movement Flying (20) Location To Epsilon Eridani Parts ------- > --- POWER (3) -------- Quantum Reactor Quantum Reactor Light Quantum Reactor > --- PROPULSION (12) -- Field Propulsion Array Field Propulsion Array Field Propulsion Array Q-thruster Improved Diametric Drive Impulse Thruster Array Impulse Thruster Array > --- UTILITY (8) ------ Power Amplifier Improved Cooling System Advanced Cooling System Improved Coolant Injector Large Storage Unit Energy Well Advanced Weight Redist. System Improved Utility Shielding > --- WEAPON (3) ------- Gamma Bomb Array Sigix Broadsword > --- INVENTORY (10) --- Antimatter Reactor Quantum Reactor Field Propulsion Drive Impulse Thruster Field Propulsion Array Improved Diametric Drive Improved Diametric Drive Maneuvering Thrusters Peak State ------------ > --- POWER ------------ Quantum Reactor Light Quantum Reactor Light Quantum Reactor > --- PROPULSION ------- Field Propulsion Array Field Propulsion Array Field Propulsion Array Q-thruster Improved Diametric Drive Impulse Thruster Array Impulse Thruster Array > --- UTILITY ---------- Power Amplifier Improved Cooling System Advanced Cooling System Improved Coolant Injector Large Storage Unit Energy Well Advanced Weight Redist. System Improved Utility Shielding > --- WEAPON ----------- Gamma Bomb Array Sigix Broadsword > --- INVENTORY -------- Antimatter Reactor Quantum Reactor Quantum Reactor Field Propulsion Drive Impulse Thruster Field Propulsion Array Improved Diametric Drive Improved Diametric Drive Maneuvering Thrusters [Rating: 194] Favorites ----------- Power Ion Engine Engine Ion Engine Power Core Micro Fission Core Reactor Antimatter Reactor Propulsion Cesium-ion Thruster Treads Light Treads Leg Carbon-fiber Leg Flight Unit Cesium-ion Thruster Utility Large Storage Unit Device Heat Sink Storage Large Storage Unit Protection Improved Propulsion Shielding Weapon Light Assault Rifle Energy Gun Heavy EM Pulse Gun Energy Cannon Compact HERF Cannon Ballistic Gun Light Assault Rifle Launcher Gamma Bomb Array Slashing Weapon Great Axe Build | -11 -10 -9 -8 -7 -6 -6 -6 -5 -5 -4 -3 -2 -2 -1 ------- Run | Scr Mat Mat Mat Fac Fac Low Low Fac Ext Fac Res Res Qua Acc Slots Evolved 19 | . 1 2 2 2 2 . . 2 . 2 2 2 . 2 Power 2 | . 1 . . . . . . . . 1 . . . . Propulsion 10 | . . 1 1 2 1 . . 1 . 1 1 1 . 1 Utility 6 | . . 1 1 . 1 . . 1 . . 1 1 . . Weapon 1 | . . . . . . . . . . . . . . 1 Parts Attached 130 | 6 3 32 11 11 8 3 1 4 . 13 17 11 6 4 Power 33 | 1 1 13 1 1 2 2 . . . 5 2 4 . 1 Engine 24 | 1 1 13 1 1 2 2 . . . 3 . . . . Core 1 | . . . . . . . . . . 1 . . . . Reactor 8 | . . . . . . . . . . 1 2 4 . 1 Propulsion 45 | 2 . 10 2 6 2 . . 2 . 5 6 5 3 2 Treads 5 | 2 . 3 . . . . . . . . . . . . Leg 10 | . . 7 2 1 . . . . . . . . . . Wheel . | . . . . . . . . . . . . . . . Hover . | . . . . . . . . . . . . . . . Flight 30 | . . . . 5 2 . . 2 . 5 6 5 3 2 Utility 25 | 1 2 2 3 2 2 1 1 2 . 3 3 1 2 . Device 12 | . 1 1 1 1 . . 1 2 . 2 1 1 1 . Storage 8 | 1 1 1 . . 2 1 . . . 1 1 . . . Processor . | . . . . . . . . . . . . . . . Hackware . | . . . . . . . . . . . . . . . Protection 5 | . . . 2 1 . . . . . . 1 . 1 . Artifact . | . . . . . . . . . . . . . . . Weapon 27 | 2 . 7 5 2 2 . . . . . 6 1 1 1 Energy Gun 13 | 1 . 3 5 2 . . . . . . 2 . . . Energy Cannon 3 | . . . . . . . . . . . 2 1 . . Ballistic Gun 5 | 1 . 4 . . . . . . . . . . . . Ballistic Cannon . | . . . . . . . . . . . . . . . Launcher 1 | . . . . . . . . . . . . . . 1 Special Weapon . | . . . . . . . . . . . . . . . Impact Weapon . | . . . . . . . . . . . . . . . Slashing Weapon 5 | . . . . . 2 . . . . . 2 . 1 . Piercing Weapon . | . . . . . . . . . . . . . . . Special Melee Weapon . | . . . . . . . . . . . . . . . Unidentified Prototypes 11 | . . 2 2 . 1 . . . . . 3 1 2 . Parts Lost 11 | . . 2 1 . . . . 1 . 4 1 2 . . Power 2 | . . . . . . . . . . 1 . 1 . . Propulsion 6 | . . . 1 . . . . . . 3 1 1 . . Utility 1 | . . . . . . . . 1 . . . . . . Weapon 2 | . . 2 . . . . . . . . . . . . Highest Loss Streak 4 | . . 1 1 . . . . 1 . 4 1 2 . . Average Slot Usage (%) 94 | . 95 98 99 80 90 99 93 93 88 87 92 84 77 75 Engine 14 | . 25 19 16 7 11 12 12 11 11 11 1 . . . Reactor 1 | . . . . . . . . . . 1 7 12 12 11 Treads 6 | . 25 10 . . . . . . . . . . . . Leg 10 | . . 18 32 9 6 . . . . . . . . . Flight 15 | . . . . 31 36 43 43 44 44 41 41 30 25 25 Device 10 | . 7 10 8 12 12 6 6 11 11 13 18 20 20 19 Storage 15 | . 12 20 16 7 7 18 18 16 16 15 9 8 8 7 Protection 2 | . . . 8 2 6 6 6 4 . . 2 4 4 3 Energy Gun 6 | . 12 4 15 8 6 5 . . . . 1 . . . Ballistic Gun 6 | . 12 15 . . . . . . . . . . . . Slashing Weapon 1 | . . . . . 3 6 6 5 5 2 2 4 4 3 Naked Turns . | . . . . . . . . . . . . . . . Heaviest Build 106 | 14 28 45 53 53 42 46 45 47 45 57 77 96 96 106 Greatest Support 152 | 40 40 69 55 50 46 46 46 56 56 61 95 131 134 152 Greatest Overweight (x) 4 | 4 . 2 1 1 2 . . . . . . . . . Average Overweight (x) . | 1 . . . . . . . . . . . . . . Largest Inventory Capacity 16 | 8 10 16 16 16 14 10 10 10 10 10 14 10 10 10 Average Capacity 12 | 7 8 16 16 10 10 10 10 10 10 10 10 10 10 10 Most Carried 16 | 8 9 16 16 15 10 10 10 10 10 10 10 10 10 10 Average Carried 10 | 4 5 13 14 10 8 9 9 9 10 9 9 8 9 8 Final Capacity 16 | 8 10 16 16 10 10 10 10 10 10 10 10 10 10 10 Final Carried 16 | 5 8 16 15 10 10 10 9 10 10 9 10 8 9 9 Class Distribution -------------------- 72% | Hacker-Mutant 16% | Generator-Sprinter 11% | Hacker-Sprinter Dominant Class ---------------- Hacker-Mutant | -10/Materials Hacker-Mutant | -9/Materials Hacker-Mutant | -8/Materials Hacker-Mutant | -7/Factory Hacker-Mutant | -6/Factory Hacker-Sprinter | -6/Lower Caves Hacker-Sprinter | -6/Lower Caves Hacker-Sprinter | -5/Factory Hacker-Sprinter | -5/Extension Generator-Sprinter | -4/Factory Generator-Sprinter | -3/Research Generator-Sprinter | -2/Research Generator-Sprinter | -2/Quarantine Generator-Sprinter | -1/Access Resources | -11 -10 -9 -8 -7 -6 -6 -6 -5 -5 -4 -3 -2 -2 -1 ----------- Run | Scr Mat Mat Mat Fac Fac Low Low Fac Ext Fac Res Res Qua Acc Matter Collected 1347 | 216 73 428 125 70 . 160 . 45 . 10 113 53 54 . Remotely . | . . . . . . . . . . . . . . . Salvage Created 1732 | . 167 696 708 . 70 . . 51 . . 40 . . . Parts 112 | . 9 54 39 . 5 . . 2 . . 3 . . . Haulers Intercepted . | . . . . . . . . . . . . . . . Recyclers Shooed . | . . . . . . . . . . . . . . . Parts Field Recycled . | . . . . . . . . . . . . . . . Retrieved Matter . | . . . . . . . . . . . . . . . Parts Self-Destructed . | . . . . . . . . . . . . . . . Prevented . | . . . . . . . . . . . . . . . Kills | -11 -10 -9 -8 -7 -6 -6 -6 -5 -5 -4 -3 -2 -2 -1 ------- Run | Scr Mat Mat Mat Fac Fac Low Low Fac Ext Fac Res Res Qua Acc Combat Hostiles Destroyed 43 | . 5 20 14 . 1 . . 2 . . 1 . . . Melee 2 | . . . . . . . . 2 . . . . . . Guns 37 | . 4 20 12 . 1 . . . . . . . . . Cannons 1 | . . . . . . . . . . . 1 . . . AOE 2 | . 1 . 1 . . . . . . . . . . . Classes Destroyed 4 | . 2 2 . . . . . . . . . . . . Watcher 2 | . . 2 . . . . . . . . . . . . Swarmer 18 | . 2 10 3 . . . . 2 . . 1 . . . Grunt 9 | . 3 2 4 . . . . . . . . . . . Sentry 16 | . . 8 7 . 1 . . . . . . . . . Best Kill Streak 7 | . 4 7 4 . 1 . . 2 . . 1 . . . Combat Bots Only 6 | . 4 6 4 . 1 . . 2 . . 1 . . . Max Kills in Single Turn 2 | . 1 2 1 . 1 . . 1 . . 1 . . . Gunslinging 1 | . . 1 . . . . . . . . . . . . Exploded 1 | . 1 . 1 . . . . . . . . . . . Melee 1 | . . . . . . . . 1 . . . . . . Uniques/NPCs Destroyed . | . . . . . . . . . . . . . . . Combat | -11 -10 -9 -8 -7 -6 -6 -6 -5 -5 -4 -3 -2 -2 -1 -------- Run | Scr Mat Mat Mat Fac Fac Low Low Fac Ext Fac Res Res Qua Acc Damage Taken 3050 | . 99 810 413 41 90 264 35 231 . 230 265 516 56 . Core 374 | . . 153 38 10 . 15 . 35 . 11 55 57 . . Absorbed by Shields . | . . . . . . . . . . . . . . . Core Remaining (%) 94 | 100 100 61 93 98 . . 98 . 96 99 95 . 96 100 Volleys Fired 97 | . 9 48 33 1 1 . . . . . 4 . 1 . Largest 2 | . 2 2 2 1 1 . . . . . 1 . 1 . Hottest 120 | . 60 85 95 61 61 . . . . . 94 . 120 . Shots Fired 187 | . 18 96 66 1 1 . . . . . 4 . 1 . Gun 182 | . 18 96 66 1 1 . . . . . . . . . Cannon 5 | . . . . . . . . . . . 4 . 1 . Launcher . | . . . . . . . . . . . . . . . Special . | . . . . . . . . . . . . . . . Kinetic 80 | . 9 71 . . . . . . . . . . . . Thermal 26 | . . 23 . 1 1 . . . . . . . 1 . Explosive . | . . . . . . . . . . . . . . . Electromagnetic 81 | . 9 2 66 . . . . . . . 4 . . . Robot Hit Streak 44 | . 10 38 44 1 2 . . . . . 3 . . . Robot Miss Streak 2 | . 1 1 2 . . . . . . . 1 . 1 . Penetration Max . | . . . . . . . . . . . . . . . Secondary Targets 3 | . . 3 . . . . . . . . . . . . Max Gunslinging Chain 1 | . . 1 . . . . . . . . . . . . Shots Hit Robots 168 | . 14 86 57 1 4 . . 2 . . 4 . . . Core Hits 69 | . 7 32 25 . 2 . . 2 . . 1 . . . Critical Hits 1 | . . 1 . . . . . . . . . . . . Critical Kills . | . . . . . . . . . . . . . . . Critical Parts Destroyed 1 | . . 1 . . . . . . . . . . . . Melee Attacks 22 | . . . . . 3 . . 8 . 3 5 1 2 . Impact . | . . . . . . . . . . . . . . . Slashing 22 | . . . . . 3 . . 8 . 3 5 1 2 . Piercing . | . . . . . . . . . . . . . . . Sneak Attacks . | . . . . . . . . . . . . . . . Combat Hostiles . | . . . . . . . . . . . . . . . Follow-up Attacks . | . . . . . . . . . . . . . . . Damage Inflicted 2533 | . 189 1131 855 18 121 . . 70 . . 149 . . . Guns 1997 | . 146 1034 782 18 17 . . . . . . . . . Cannons 106 | . . . . . . . . . . . 106 . . . Explosions 116 | . 43 . 73 . . . . . . . . . . . Melee 217 | . . . . . 104 . . 70 . . 43 . . . Ramming 97 | . . 97 . . . . . . . . . . . . Kinetic 741 | . 44 697 . . . . . . . . . . . . Thermal 464 | . 43 313 73 18 17 . . . . . . . . . Explosive . | . . . . . . . . . . . . . . . Electromagnetic 1014 | . 102 24 782 . . . . . . . 106 . . . Impact . | . . . . . . . . . . . . . . . Slashing 217 | . . . . . 104 . . 70 . . 43 . . . Piercing . | . . . . . . . . . . . . . . . Highest Corruption 1 | . . . . . 1 1 1 . . 1 . . . . Average Corruption 1 | . . . . . 1 1 1 . . 1 . . . . Corruption Purged . | . . . . . . . . . . . . . . . Overload Shots . | . . . . . . . . . . . . . . . Overflow Damage 22 | . . 17 . . . . . . . . 5 . . . Projectiles 5 | . . . . . . . . . . . 5 . . . Explosions . | . . . . . . . . . . . . . . . Melee 17 | . . 17 . . . . . . . . . . . . Knockbacks . | . . . . . . . . . . . . . . . Impact . | . . . . . . . . . . . . . . . Kinetic . | . . . . . . . . . . . . . . . Secondary . | . . . . . . . . . . . . . . . Self-Inflicted Damage 70 | . 19 13 38 . . . . . . . . . . . Shots 2 | . 1 . 1 . . . . . . . . . . . Rammed 2 | . . 2 . . . . . . . . . . . . Targets Rammed 6 | . . 6 . . . . . . . . . . . . Kicked 4 | . . 4 . . . . . . . . . . . . Crushed . | . . . . . . . . . . . . . . . Highest Temperature 307 | . 126 80 96 . . 307 234 198 48 48 174 26 . . Average Temperature 72 | . 48 27 34 . . 112 125 88 26 16 64 15 . . Received Heat Transfer 1056 | . 66 402 198 6 54 129 12 63 . 36 27 54 9 . Effects 2 | . . . . . . 2 . . . . . . . . Energy Bleed 1 | . . . . . . 1 . . . . . . . . Interference 1 | . . . . . . 1 . . . . . . . . Siege Activations . | . . . . . . . . . . . . . . . Robots Corrupted 1 | . . . 1 . . . . . . . . . . . Combat Hostiles 1 | . . . 1 . . . . . . . . . . . Parts Fried 4 | . . . 4 . . . . . . . . . . . Impact Corruptions 2 | . . 2 . . . . . . . . . . . . Robots Melted . | . . . . . . . . . . . . . . . Combat Hostiles . | . . . . . . . . . . . . . . . Parts Melted . | . . . . . . . . . . . . . . . Heat Transferred 951 | . 50 777 50 37 37 . . . . . . . . . Parts Sabotaged . | . . . . . . . . . . . . . . . Parts Stolen . | . . . . . . . . . . . . . . . Parts Stripped . | . . . . . . . . . . . . . . . Power Chain Reactions 3 | . 1 . 2 . . . . . . . . . . . Missiles Intercepted . | . . . . . . . . . . . . . . . Alert | -11 -10 -9 -8 -7 -6 -6 -6 -5 -5 -4 -3 -2 -2 -1 ------- Run | Scr Mat Mat Mat Fac Fac Low Low Fac Ext Fac Res Res Qua Acc Peak Influence 558 | . 150 316 518 106 112 . . 417 150 199 558 533 310 191 Initial 235 | . . 4 63 76 37 . . 84 150 55 77 235 224 140 Average 160 | . 91 116 273 77 68 . . 246 150 111 299 346 260 152 Maximum Alert Level 2 | . . 1 2 . . . . 2 . . 2 2 1 . Low Security (%) 65 | 100 100 70 29 100 100 . . 31 100 100 42 . . 100 Level 1 26 | . . 29 46 . . . . 62 . . 20 64 100 . Level 2 7 | . . . 24 . . . . 6 . . 37 35 . . Level 3 . | . . . . . . . . . . . . . . . Level 4 . | . . . . . . . . . . . . . . . Level 5 . | . . . . . . . . . . . . . . . High Security . | . . . . . . . . . . . . . . . Max Security . | . . . . . . . . . . . . . . . Squads Dispatched 9 | . . 2 . 1 1 . . . . . 2 . 1 2 Investigation . | . . . . . . . . . . . . . . . Extermination . | . . . . . . . . . . . . . . . Reinforcement 8 | . . 2 . . 1 . . . . . 2 . 1 2 Assault . | . . . . . . . . . . . . . . . Garrison 1 | . . . . 1 . . . . . . . . . . Intercept . | . . . . . . . . . . . . . . . Construction Impeded . | . . . . . . . . . . . . . . . Haulers Reinforced . | . . . . . . . . . . . . . . . Stealth | -11 -10 -9 -8 -7 -6 -6 -6 -5 -5 -4 -3 -2 -2 -1 --------- Run | Scr Mat Mat Mat Fac Fac Low Low Fac Ext Fac Res Res Qua Acc Distress Signals 8 | . . 2 2 . . . . . . . 2 1 1 . Communications Jammed . | . . . . . . . . . . . . . . . Distress Signals . | . . . . . . . . . . . . . . . Times Spotted 191 | . 9 31 20 2 4 29 1 22 . 9 24 24 13 3 Peak Tracking Total 15 | . 4 6 6 2 3 12 1 7 . 7 12 15 11 1 Tactical Retreats 32 | . 2 3 . . . 10 . 4 . 2 5 5 1 . Traps | -11 -10 -9 -8 -7 -6 -6 -6 -5 -5 -4 -3 -2 -2 -1 ------- Run | Scr Mat Mat Mat Fac Fac Low Low Fac Ext Fac Res Res Qua Acc Traps Triggered 5 | . . 2 . . 1 . . . . 1 1 . . . Indirectly . | . . . . . . . . . . . . . . . Trap Hack Attempts . | . . . . . . . . . . . . . . . Triggered . | . . . . . . . . . . . . . . . Disarmed . | . . . . . . . . . . . . . . . Reprogrammed . | . . . . . . . . . . . . . . . Reused . | . . . . . . . . . . . . . . . Traps Extracted . | . . . . . . . . . . . . . . . Installed . | . . . . . . . . . . . . . . . Triggered 1 | . . . . . . . 1 . . . . . . . Machines | -11 -10 -9 -8 -7 -6 -6 -6 -5 -5 -4 -3 -2 -2 -1 ---------- Run | Scr Mat Mat Mat Fac Fac Low Low Fac Ext Fac Res Res Qua Acc Machines Disabled 2 | . . . . . . . . . . . . . 2 . Max in Single Turn 1 | . . . . . . . . . . . . . 1 . Machines Sabotaged . | . . . . . . . . . . . . . . . Garrisons Compromised . | . . . . . . . . . . . . . . . Overloaded Fab Kills . | . . . . . . . . . . . . . . . Fab Network Shutdowns . | . . . . . . . . . . . . . . . Hacking | -11 -10 -9 -8 -7 -6 -6 -6 -5 -5 -4 -3 -2 -2 -1 --------- Run | Scr Mat Mat Mat Fac Fac Low Low Fac Ext Fac Res Res Qua Acc Machines Accessed 6 | . 1 . . . . 1 . 1 1 . . 1 . 1 Terminals 5 | . 1 . . . . . . 1 1 . . 1 . 1 Fabricators . | . . . . . . . . . . . . . . . Repair Stations . | . . . . . . . . . . . . . . . Recycling Units . | . . . . . . . . . . . . . . . Scanalyzers . | . . . . . . . . . . . . . . . Garrison Access . | . . . . . . . . . . . . . . . Total Hacks 7 | . 2 . . . . 1 . 1 1 . . 1 . 1 Successful 6 | . 1 . . . . 1 . 1 1 . . 1 . 1 Failed 1 | . 1 . . . . . . . . . . . . . Catastrophic . | . . . . . . . . . . . . . . . Database Lockouts . | . . . . . . . . . . . . . . . Manual . | . . . . . . . . . . . . . . . Terminals 6 | . 2 . . . . . . 1 1 . . 1 . 1 Fabricators . | . . . . . . . . . . . . . . . Repair Stations . | . . . . . . . . . . . . . . . Recycling Units . | . . . . . . . . . . . . . . . Scanalyzers . | . . . . . . . . . . . . . . . Garrison Access . | . . . . . . . . . . . . . . . Terminal Hacks 6 | . 1 . . . . 1 . 1 1 . . 1 . 1 Open Door 5 | . . . . . . 1 . 1 1 . . 1 . 1 Locate Traps 1 | . 1 . . . . . . . . . . . . . Fabricator Hacks . | . . . . . . . . . . . . . . . Repair Station Hacks . | . . . . . . . . . . . . . . . Recycling Unit Hacks . | . . . . . . . . . . . . . . . Scanalyzer . | . . . . . . . . . . . . . . . Garrison Access Hacks . | . . . . . . . . . . . . . . . Unauthorized Hacks . | . . . . . . . . . . . . . . . Terminals . | . . . . . . . . . . . . . . . Fabricators . | . . . . . . . . . . . . . . . Repair Stations . | . . . . . . . . . . . . . . . Recycling Units . | . . . . . . . . . . . . . . . Scanalyzers . | . . . . . . . . . . . . . . . Garrison Access . | . . . . . . . . . . . . . . . Data Cores Recovered . | . . . . . . . . . . . . . . . Used . | . . . . . . . . . . . . . . . Hacking Detections 1 | . . . . . . . . . . . . . . 1 Full Trace Events . | . . . . . . . . . . . . . . . Feedback Events . | . . . . . . . . . . . . . . . Feedback Blocked . | . . . . . . . . . . . . . . . Robot Schematics Acquired . | . . . . . . . . . . . . . . . Robots Built . | . . . . . . . . . . . . . . . Matter . | . . . . . . . . . . . . . . . Time . | . . . . . . . . . . . . . . . Total Robot Build Rating . | . . . . . . . . . . . . . . . Part Schematics Acquired . | . . . . . . . . . . . . . . . Parts Built . | . . . . . . . . . . . . . . . Matter . | . . . . . . . . . . . . . . . Time . | . . . . . . . . . . . . . . . Total Part Build Rating . | . . . . . . . . . . . . . . . Parts Repaired . | . . . . . . . . . . . . . . . Time . | . . . . . . . . . . . . . . . Parts Recycled . | . . . . . . . . . . . . . . . Recycled Matter . | . . . . . . . . . . . . . . . Retrieved Matter . | . . . . . . . . . . . . . . . Retrieved Components . | . . . . . . . . . . . . . . . Parts Scanalyzed . | . . . . . . . . . . . . . . . Part Schematics Acquired . | . . . . . . . . . . . . . . . Parts Damaged . | . . . . . . . . . . . . . . . Bothacking | -11 -10 -9 -8 -7 -6 -6 -6 -5 -5 -4 -3 -2 -2 -1 ------------ Run | Scr Mat Mat Mat Fac Fac Low Low Fac Ext Fac Res Res Qua Acc Used RIF Installer . | . . . . . . . . . . . . . . . Robots Hacked . | . . . . . . . . . . . . . . . Non-combat . | . . . . . . . . . . . . . . . Combat . | . . . . . . . . . . . . . . . Robot Hacks Applied . | . . . . . . . . . . . . . . . Relay Couplers Released . | . . . . . . . . . . . . . . . Robots Rewired . | . . . . . . . . . . . . . . . Allies Hacked . | . . . . . . . . . . . . . . . Hacks Repelled . | . . . . . . . . . . . . . . . Allies | -11 -10 -9 -8 -7 -6 -6 -6 -5 -5 -4 -3 -2 -2 -1 -------- Run | Scr Mat Mat Mat Fac Fac Low Low Fac Ext Fac Res Res Qua Acc Total Allies . | . . . . . . . . . . . . . . . Largest Group . | . . . . . . . . . . . . . . . Highest-Rated Group . | . . . . . . . . . . . . . . . Highest-Rated Ally . | . . . . . . . . . . . . . . . Total Orders . | . . . . . . . . . . . . . . . Ally Attacks . | . . . . . . . . . . . . . . . Total Damage . | . . . . . . . . . . . . . . . Kills . | . . . . . . . . . . . . . . . Allies Corrupted . | . . . . . . . . . . . . . . . Allies Melted . | . . . . . . . . . . . . . . . Intel | -11 -10 -9 -8 -7 -6 -6 -6 -5 -5 -4 -3 -2 -2 -1 ------- Run | Scr Mat Mat Mat Fac Fac Low Low Fac Ext Fac Res Res Qua Acc Robot Analysis Total . | . . . . . . . . . . . . . . . Derelict Logs Recovered 1 | . . . . . . 1 . . . . . . . . Drone Launches . | . . . . . . . . . . . . . . . Drone Recoveries . | . . . . . . . . . . . . . . . Exploration | -11 -10 -9 -8 -7 -6 -6 -6 -5 -5 -4 -3 -2 -2 -1 ------------- Run | Scr Mat Mat Mat Fac Fac Low Low Fac Ext Fac Res Res Qua Acc Turns Passed 3448 | 76 450 1087 426 195 102 326 24 166 16 112 220 134 64 50 Spaces Moved 5292 | 33 253 655 222 250 130 919 108 457 94 370 881 551 169 200 Core 18 | 18 . . . . . . . . . . . . . . Treads 457 | 15 253 189 . . . . . . . . . . . . Legs 704 | . . 466 222 13 3 . . . . . . . . . Wheels . | . . . . . . . . . . . . . . . Hover . | . . . . . . . . . . . . . . . Flight 4113 | . . . . 237 127 919 108 457 94 370 881 551 169 200 Fastest Speed 10 | 50 160 120 120 38 21 21 21 17 17 16 10 13 19 20 Average Speed 46 | 181 160 132 124 43 38 21 21 17 17 17 13 18 22 20 Slowest Speed 250 | 250 160 180 150 150 190 21 21 17 17 21 19 21 26 23 Overloaded Moves . | . . . . . . . . . . . . . . . Propulsion Burnouts . | . . . . . . . . . . . . . . . Robots Hopped 37 | . . . . 1 1 4 . 9 . 2 3 12 5 . Cave-ins Triggered . | . . . . . . . . . . . . . . . Exploration Rate (%) 28 | 4 54 54 32 10 5 94 18 15 24 18 44 25 29 8 Regions Visited 14 Branch Regions 4 Pre-discovered Areas 1 | . . . . . . 1 . . . . . . . . Known Exits Taken 14 | 1 1 1 1 1 1 1 1 1 1 1 1 1 1 . Unknown Exits Taken . | . . . . . . . . . . . . . . . Scrap Searched 2 | . . . . . . 2 . . . . . . . . Spaces Dug 14 | . . . . . . . . 6 . 3 4 1 . . Terrain Destroyed 24 | . 5 . 4 . . . . 6 . 3 4 1 1 . Melee 14 | . . . . . . . . 6 . 3 4 1 . . Projectile 1 | . . . . . . . . . . . . . 1 . AOE 9 | . 5 . 4 . . . . . . . . . . . Terrain Rammed . | . . . . . . . . . . . . . . . Walls Destroyed . | . . . . . . . . . . . . . . . Machines Disabled . | . . . . . . . . . . . . . . . Actions | -11 -10 -9 -8 -7 -6 -6 -6 -5 -5 -4 -3 -2 -2 -1 --------- Run | Scr Mat Mat Mat Fac Fac Low Low Fac Ext Fac Res Res Qua Acc Total 6066 | 49 283 798 309 337 175 1047 109 521 93 409 967 574 186 209 Wait 346 | . 8 1 22 61 23 127 . 56 . 12 35 1 . . Move 5206 | 32 252 654 221 247 127 910 107 439 93 365 874 528 158 199 Hop 34 | . . . . 1 1 4 . 8 . 2 3 10 5 . Pick Up 129 | 11 8 35 12 5 7 1 . 4 . 9 17 10 6 4 Fast Attach 8 | . . 1 . . 1 . . . . 4 . 1 1 . Attach 90 | 6 2 20 5 9 6 1 1 2 . 8 13 8 5 4 Detach 2 | . . . . 1 1 . . . . . . . . . Swap 34 | . 1 11 6 2 1 2 . 2 . 1 4 3 1 . Drop 92 | . 3 22 10 10 4 2 1 2 . 5 12 12 7 2 Fire 97 | . 9 48 33 1 1 . . . . . 4 . 1 . Melee 22 | . . . . . 3 . . 8 . 3 5 1 2 . Ram . | . . . . . . . . . . . . . . . Kick 6 | . . 6 . . . . . . . . . . . . Crush . | . . . . . . . . . . . . . . . Escape Stasis . | . . . . . . . . . . . . . . . Rewire . | . . . . . . . . . . . . . . . Trap . | . . . . . . . . . . . . . . . Miscellaneous . | . . . . . . . . . . . . . . . Route ------- -11/Scrapyard -10/Materials (discovered 2 exits: *Mat / *Min) -9/Materials (discovered 2 exits: *Mat / *Min) -8/Materials -7/Factory (discovered 2 exits: *Fac / *Sto) -6/Factory -6/Lower Caves -6/Lower Caves -5/Factory -5/Extension -4/Factory (discovered 2 exits: *Res / *Upp) -3/Research -2/Research -2/Quarantine -1/Access To Epsilon Eridani History --------- Turn | Location | Event 18 | -11/Scrapyard | Identified exit to Materials 18 | -11/Scrapyard | Discovered exit to Materials (range 16) 77 | -11/Scrapyard | Entered Materials 77 | -10/Materials | Evolved 1 slot: Power x1 307 | -10/Materials | Identified exit to Mines 307 | -10/Materials | Discovered exit to Mines (range 8) 309 | -10/Materials | Build established: Hacker-Mutant 420 | -10/Materials | Identified exit to Materials 420 | -10/Materials | Discovered exit to Materials (range 15) 527 | -10/Materials | Entered another Materials area 527 | -9/Materials | Evolved 2 slots: Propulsion x1, Utility x1 753 | -9/Materials | Identified exit to Mines 753 | -9/Materials | Discovered exit to Mines (range 7) 1576 | -9/Materials | Identified exit to Materials 1576 | -9/Materials | Discovered exit to Materials (range 3) 1614 | -9/Materials | Entered another Materials area 1614 | -8/Materials | Evolved 2 slots: Propulsion x1, Utility x1 2018 | -8/Materials | Identified exit to Factory 2018 | -8/Materials | Discovered exit to Factory (range 16) 2040 | -8/Materials | Entered Factory 2040 | -7/Factory | Evolved 2 slots: Propulsion x2 2178 | -7/Factory | Identified exit to Storage 2178 | -7/Factory | Discovered exit to Storage (range 7) 2222 | -7/Factory | Identified exit to Factory 2222 | -7/Factory | Discovered exit to Factory (range 10) 2225 | -7/Factory | Garrison activated, responded to threat 2235 | -7/Factory | Entered another Factory area 2235 | -6/Factory | Evolved 2 slots: Propulsion x1, Utility x1 2324 | -6/Factory | Identified exit to Lower Caves 2324 | -6/Factory | Discovered exit to Lower Caves (range 7) 2337 | -6/Factory | Entered Lower Caves 2351 | -6/Lower Caves | Attracted the attention of an 0b10 checkpoint 2386 | -6/Lower Caves | Learned location of Extension (-5) 2411 | -6/Lower Caves | Attacked by a faux Warlord 2662 | -6/Lower Caves | Identified exit to Lower Caves 2662 | -6/Lower Caves | Discovered exit to Lower Caves (range 4) 2663 | -6/Lower Caves | Entered another Lower Caves area 2675 | -6/Lower Caves | Spotted B-75 Beast 2685 | -6/Lower Caves | Identified exit to Factory 2685 | -6/Lower Caves | Discovered exit to Factory (range 8) 2687 | -6/Lower Caves | Entered Factory 2687 | -5/Factory | Evolved 2 slots: Propulsion x1, Utility x1 2852 | -5/Factory | Identified exit to Extension 2852 | -5/Factory | Discovered exit to Extension (range 6) 2853 | -5/Factory | Entered Extension 2866 | -5/Extension | Spotted B-75 Beast 2867 | -5/Extension | Spotted B-75 Beast 2869 | -5/Extension | Identified exit to Factory 2869 | -5/Extension | Discovered exit to Factory (range 3) 2869 | -5/Extension | Entered Factory 2869 | -4/Factory | Evolved 2 slots: Power x1, Propulsion x1 2880 | -4/Factory | Identified exit to Upper Caves 2880 | -4/Factory | Discovered exit to Upper Caves (range 7) 2895 | -4/Factory | Spotted B-86 Titan 2963 | -4/Factory | Lost 4 parts (1p3n) 2965 | -4/Factory | Identified exit to Research 2965 | -4/Factory | Discovered exit to Research (range 11) 2981 | -4/Factory | Entered Research 2981 | -3/Research | Evolved 2 slots: Propulsion x1, Utility x1 3034 | -3/Research | Spotted B-86 Titan 3068 | -3/Research | Found Prototype Slashing Weapon 3069 | -3/Research | Identified Molecular Scythe 3195 | -3/Research | Spotted B-86 Titan 3197 | -3/Research | Identified exit to Research 3197 | -3/Research | Discovered exit to Research (range 16) 3201 | -3/Research | Entered another Research area 3201 | -2/Research | Evolved 2 slots: Propulsion x1, Utility x1 3216 | -2/Research | Found Gamma Bomb Array 3249 | -2/Research | Spotted B-90 Cyclops 3259 | -2/Research | Spotted B-90 Cyclops 3301 | -2/Research | Build established: Generator-Sprinter 3309 | -2/Research | Identified exit to Quarantine 3309 | -2/Research | Discovered exit to Quarantine (range 9) 3335 | -2/Research | Entered Quarantine 3357 | -2/Quarantine | Found Alien Slashing Weapon 3357 | -2/Quarantine | Identified Sigix Broadsword 3389 | -2/Quarantine | Found Alien Artifact 3390 | -2/Quarantine | Identified Terrabomb 3390 | -2/Quarantine | Used Terrabomb 3394 | -2/Quarantine | Identified exit to Access 3394 | -2/Quarantine | Discovered exit to Access (range 15) 3399 | -2/Quarantine | Entered Access 3399 | -1/Access | Evolved 2 slots: Propulsion x1, Weapon x1 3448 | -1/Access | Identified exit to Surface 3448 | -1/Access | Discovered exit to Surface (range 6) 3449 | *** | Escaped! Last Messages --------------- PARAMETERS=PROPULSION_1,WEAPON_1 LOCATION=ACCESS GOAL=ESCAPE 03403_ Acquired Impulse Thruster Array. 03404_ Dropped Nuclear Pulse Array. 03407_ Acquired Maneuvering Thrusters. 03410_ O-32 Director: "IFF HANDSHAKE FAILED. SECURING TERMINAL." 03411_ O-32 Director uses terminal to summon reinforcements. 03411_ ALERT: Hostiles spotted, dispatching reinforcements to Terminal A013. 03411_ O-32 Director locks terminal. 03417_ O-32 Director: "IFF HANDSHAKE FAILED. SECURING TERMINAL." 03420_ ALERT: Hostiles spotted, dispatching reinforcements to Terminal A020. 03421_ Acquired Quantum Reactor. 03423_ Dropped Lgt. Quantum Reactor. 03447_ Connecting with Terminal... >>Open Sealed Barrier opened. 03448_ The Access Shell folds into the floor. 03448_ EXIT=FOUND: SURFACE [Achievement: Epsilon Run] Map ----- +----------------------------------------------------+ | ?????????????????????????????????????????????????? | | ?????????????????????????????????????????????????? | | ?????????????????????????????????????????????????? | | ?????????????????????????????????????????????????? | | ?????????????????????????????????????????????????? | | ?????????????????????????????????????????????????? | | ?????????????????????????????????????????????????? | | ?????????????????????????????????????????????????? | | ?????????????????????????????????????????????????? | | ?????????????????????????????????????????????????? | | ?????????????????????????????????????????????????? | | ?????????????????????????????????????????????????? | | ?????????????????????????????????????????????????? | | ?????????????????????????????????????????????????? | | ?????????????????????????????????????????????????? | | ?????????????????????????????????????????????????? | | ?????????????????????????????????????????????????? | | ?????????????????????????????????????????????????? | | ?????????????????????????????????????????????????? | | ?????????????????????????????????????????????????? | | ???????????????????#""""""""""#??????????????????? | | ???????????????????# #??????????????????? | | ???????????????????# #??????????????????? | | ???????????????????# #??????????????????? | | ???????????????????# "" #??????????????????? | | ???????????????????# "@ #??????????????????? | | ???????????????????# #??????????????????? | | ???????????????????# #??????????????????? | | ???????????????????# #??????????????????? | | ??????????????????## ##?????????????????? | | ??????????????????# #?????????????????? | | ??????????????????##"" ##?????????????????? | | ???????????????????#"" #??????????????????? | | ???????????????????#"" #??????????????????? | | ???????????????????#T #??????????????????? | | ???????????????????#"" #??????????????????? | | ############???????#"" #??????????????????? | | #########"" #####??????????????? | | ####### ??????????? | | ??????# w ??????????? | | ??????# ########################## ???????????? | | ######## ##?????????????????????????????????????? | | # #??????????????????????????????????????? | | # #??????????????????????????????????????? | | " + #??????????????????????????????????????? | | """ ! # #######????????????????????????????????? | | """ # #???????????????????????????? | | " ?# #???????????????????????????? | | ?######+### #???????????????????????????? | | ???????????????##???????????????????????????? | +----------------------------------------------------+ Best States ------------- Heat Dissipation 110 Coolant Potential 80 Energy Generation 77 Energy Capacity 1190 Matter Stores 300 Matter Capacity 300 Sight Range 16 Terrain Scan Density 10 Power Amplification 20 Additional Mass Support 9 Armor Coverage 150 Resistance: KI 35 Resistance: TH 35 Resistance: EX 35 Resistance: EM 35 Resistance: I 35 Resistance: S 35 Resistance: P 35 Propulsion Shielding 66 Utility Shielding 66 Evasion (%) 66 Recoil Reduction 3 Offensive Hacking 20 Item Schematics ----------------- None Robot Schematics ------------------ None Fabricated ------------ Nothing Alien Tech Used ----------------- Sigix Broadsword Terrabomb Achievements -------------- Cya! Epsilon Run Part-time Excavator Slippery One Speed Demon Challenges ------------ None Game ------ Seed DynamicMachineFrame Manual? 0 Play Time 02:09:39 Cumulative 28.4 hours Start 2022.01.12 @ 07:52:19 End 2022.01.12 @ 16:45:44 Sessions 7 Manual Loads 0 Difficulty Explorer Special Mode None Game No. 27 Rogue 0 Adventurer 0 Explorer 27 Win Type 0 Total 1 Types 1/0/0/0/0/0/0/0/0 Lore% 6 Gallery% 35 Achievement% 24 Wizard Run 0 Options --------- ASCII 0 Keyboard 0 Movement Numpad Keybinds 0 Fullscreen 1 Font 12/Smallcaps Map View 83x54 Tactical HUD 1 Map Filters NONE Filters NONE Steam 1 RUN: c01a5259-3c07-4f81-b82f-7c282d0e42ca